Cogmind - Beta 13 @@@ ROGUE MODE // 2024.04.02 @ 17:42:16 Player: FAYE Result: Destroyed by Y-45 Defender with Heavy Assault Rifle Performance ------------- Evolutions (1) 500 Regions Visited (2) 400 Robots Destroyed (42) 210 Value Destroyed (819) 819 Prototype IDs (1) 20 Alien Tech Used (0) 0 Bonus (0) 0 TOTAL SCORE: 1949 Bonus ------- None Cogmind --------- Core Integrity 0/400 Matter 19/300 Energy 100/100 System Corruption 0% Temperature Cool (9) Movement Core (1400) Ox27 Location -9/Materials Parts ------- > --- POWER (1) -------- (None) > --- PROPULSION (2) --- (None) > --- UTILITY (4) ------ Huge Storage Unit Power Shielding > --- WEAPON (2) ------- Maul > --- INVENTORY (25) --- Light Treads Peak State ------------ > --- POWER ------------ Light Ion Engine > --- PROPULSION ------- Light Treads Light Treads > --- UTILITY ---------- Improved Heat Sink Small Storage Unit > --- WEAPON ----------- Improved EM Shotgun Improved EM Shotgun > --- INVENTORY -------- Ion Engine Improved Hover Unit Improved EM Shotgun Light Assault Rifle Light Assault Rifle Mini Grenade Launcher [Rating: 14] Favorites ----------- Power Ion Engine Engine Ion Engine Propulsion Light Treads Treads Light Treads Leg Aluminum Leg Hover Unit Improved Hover Unit Utility Power Shielding Device Sensor Array Storage Huge Storage Unit Processor Targeting Computer Protection Power Shielding Weapon Mini Grenade Launcher Energy Gun Improved EM Shotgun Ballistic Gun Light Assault Rifle Launcher Mini Grenade Launcher Impact Weapon Maul Build | -11 -10 -9 ------- Run | Yrd Mat Mat Slots Evolved 2 | . . 2 Power . | . . . Propulsion . | . . . Utility 2 | . . 2 Weapon . | . . . Parts Attached 38 | 5 28 5 Power 7 | 1 6 . Engine 7 | 1 6 . Core . | . . . Reactor . | . . . Propulsion 6 | 2 4 . Treads 4 | 2 2 . Leg 1 | . 1 . Wheel . | . . . Hover 1 | . 1 . Flight . | . . . Utility 12 | . 8 4 Device 5 | . 3 2 Storage 2 | . 1 1 Processor 1 | . 1 . Hackware . | . . . Protection 4 | . 3 1 Artifact . | . . . Weapon 13 | 2 10 1 Energy Gun 6 | . 6 . Energy Cannon . | . . . Ballistic Gun 3 | 2 1 . Ballistic Cannon . | . . . Launcher 3 | . 3 . Special Weapon . | . . . Impact Weapon 1 | . . 1 Slashing Weapon . | . . . Piercing Weapon . | . . . Special Melee Weapon . | . . . Unidentified Prototypes 1 | . 1 . Parts Lost 14 | . 7 7 Power 2 | . 1 1 Propulsion 3 | . 1 2 Utility 4 | . 1 3 Weapon 5 | . 4 1 Highest Loss Streak 3 | . 2 3 To Critical Strikes . | . . . Average Slot Usage (%) 82 | . 87 72 Engine 11 | . 13 7 Treads 15 | . 24 . Leg 3 | . . 7 Hover 4 | . . 10 Device 10 | . 14 4 Storage 5 | . 2 10 Protection 9 | . 2 22 Energy Gun 8 | . 13 . Ballistic Gun 2 | . 3 . Launcher 8 | . 7 9 Naked Turns 6 | . 6 . Heaviest Build 97 | 5 15 97 Greatest Support 40 | 40 40 7 Greatest Overweight (x) 27 | . 1 27 Average Overweight (x) 1 | . . 11 Largest Inventory Capacity 25 | 5 8 25 Average Capacity 12 | 5 5 24 Most Carried 7 | 3 7 4 Average Carried 2 | . 3 1 Final Capacity 25 | 5 5 25 Final Carried 3 | 1 3 1 Class Distribution -------------------- 100% | Mutant Dominant Class ---------------- Mutant | -10/Materials Mutant | -9/Materials Resources | -11 -10 -9 ----------- Run | Yrd Mat Mat Matter Collected 514 | 172 342 . Remotely . | . . . Salvage Created 983 | . 824 159 Parts 98 | . 81 17 Haulers Intercepted . | . . . Recyclers Shooed . | . . . Parts Field Recycled . | . . . Retrieved Matter . | . . . Parts Self-Destructed . | . . . Prevented . | . . . Kills | -11 -10 -9 ------- Run | Yrd Mat Mat Combat Hostiles Destroyed 24 | . 16 8 Guns 10 | . 10 . AOE 13 | . 5 8 Classes Destroyed 7 | . 6 1 Worker 4 | . 3 1 Builder 8 | . 8 . Recycler 2 | . 2 . Watcher 4 | . 3 1 Swarmer 9 | . 6 3 Grunt 14 | . 10 4 Duelist 1 | . . 1 Best Kill Streak 7 | . 7 3 Combat Bots Only 3 | . 3 3 Max Kills in Single Turn 2 | . 2 2 Gunslinging . | . . . Exploded 2 | . 1 2 Melee . | . . . Uniques/NPCs Destroyed . | . . . Combat | -11 -10 -9 -------- Run | Yrd Mat Mat Hostile Shots Fired 157 | . 69 88 Missed 42 | . 19 23 Damage Taken 1746 | . 827 919 Core 630 | . 219 411 Absorbed by Shields . | . . . Redirected to Shielding 15 | . 5 10 Core Remaining (%) 56 | 100 12 . Volleys Fired 70 | . 54 16 Largest 2 | . 2 1 Hottest 90 | . 90 30 Shots Fired 100 | . 84 16 Gun 75 | . 75 . Cannon . | . . . Launcher 25 | . 9 16 Special . | . . . Kinetic 27 | . 27 . Thermal . | . . . Explosive 25 | . 9 16 Electromagnetic 48 | . 48 . Robot Hit Streak 11 | . 11 4 Robot Miss Streak 3 | . 3 2 Penetration Max . | . . . Secondary Targets 1 | . 1 . Max Gunslinging Chain 1 | . 1 . Shots Hit Robots 71 | . 63 8 Core Hits 58 | . 46 12 Critical Kills . | . . . Critical Parts Destroyed . | . . . Critical Strikes . | . . . Melee Attacks . | . . . Impact . | . . . Slashing . | . . . Piercing . | . . . Sneak Attacks . | . . . Combat Hostiles . | . . . Follow-up Attacks . | . . . Damage Inflicted 2476 | . 1671 805 Guns 809 | . 809 . Cannons . | . . . Explosions 1664 | . 859 805 Melee . | . . . Ramming 3 | . 3 . Kinetic 151 | . 151 . Thermal 310 | . 310 . Explosive 1354 | . 549 805 Electromagnetic 658 | . 658 . Impact . | . . . Slashing . | . . . Piercing . | . . . Highest Corruption . | . . . Average Corruption . | . . . Corruption Purged . | . . . Corruption Blocked . | . . . Overload Shots . | . . . Overflow Damage 55 | . 19 36 Projectiles . | . . . Explosions 55 | . 19 36 Melee . | . . . Knockbacks . | . . . Impact . | . . . Kinetic . | . . . Secondary . | . . . Self-Inflicted Damage 419 | . 241 178 Shots 15 | . 10 5 Rammed 2 | . 2 . Targets Rammed 2 | . 2 . Kicked . | . . . Crushed . | . . . Highest Temperature 120 | . 120 . Average Temperature 34 | . 34 . Received Heat Transfer 438 | . 210 228 Siege Activations . | . . . Robots Corrupted 1 | . 1 . Combat Hostiles 1 | . 1 . Parts Fried 3 | . 3 . Impact Corruptions . | . . . Robots Melted . | . . . Combat Hostiles . | . . . Parts Melted 1 | . 1 . Heat Transferred 500 | . 500 . Parts Sabotaged . | . . . Parts Stolen . | . . . Parts Stripped . | . . . Power Chain Reactions 7 | . 7 . Alert | -11 -10 -9 ------- Run | Yrd Mat Mat Peak Influence 364 | . 231 364 Initial 34 | . . 34 Average 114 | . 120 114 Maximum Alert Level 1 | . 1 1 Low Security (%) 88 | 100 97 72 Level 1 11 | . 2 27 Level 2 . | . . . Level 3 . | . . . Level 4 . | . . . Level 5 . | . . . High Security . | . . . Max Security . | . . . Squads Dispatched 4 | . 4 . Investigation 2 | . 2 . Extermination . | . . . Reinforcement 2 | . 2 . Assault . | . . . Garrison . | . . . Intercept . | . . . Searches Triggered . | . . . Construction Impeded . | . . . Haulers Reinforced . | . . . Active Scanning Responses . | . . . Cargo Convoy Interrupts . | . . . Stealth | -11 -10 -9 --------- Run | Yrd Mat Mat Distress Signals 2 | . . 2 Communications Jammed . | . . . Distress Signals . | . . . Times Spotted 39 | . 24 15 Peak Tracking Total 6 | . 4 6 Tactical Retreats 2 | . . 2 Traps | -11 -10 -9 ------- Run | Yrd Mat Mat Traps Triggered 7 | . 7 . Indirectly . | . . . Trap Hack Attempts . | . . . Triggered . | . . . Disarmed 6 | . 6 . Reprogrammed . | . . . Reused . | . . . Traps Extracted . | . . . Installed . | . . . Triggered . | . . . Machines | -11 -10 -9 ---------- Run | Yrd Mat Mat Machines Disabled 6 | . 1 5 Max in Single Turn 2 | . 1 2 Machines Repaired . | . . . Machines Dismantled . | . . . Machines Sabotaged . | . . . Overloaded Fab Kills . | . . . Hacking | -11 -10 -9 --------- Run | Yrd Mat Mat Machines Accessed 6 | . 6 . Terminals 4 | . 4 . Fabricators . | . . . Repair Stations . | . . . Recycling Units 2 | . 2 . Scanalyzers . | . . . Garrison Access . | . . . Total Hacks 19 | . 19 . Successful 13 | . 13 . Failed 6 | . 6 . Catastrophic 1 | . 1 . Database Lockouts . | . . . Manual . | . . . Terminals 14 | . 14 . Fabricators . | . . . Repair Stations . | . . . Recycling Units 5 | . 5 . Scanalyzers . | . . . Garrison Access . | . . . Terminal Hacks 10 | . 10 . Record 4 | . 4 . Alert Level 2 | . 2 . Disarm Traps 1 | . 1 . Surveillance Status 1 | . 1 . Recall Reinforcements 1 | . 1 . Hauler Manifests 1 | . 1 . Fabricator Hacks . | . . . Repair Station Hacks . | . . . Recycling Unit Hacks 3 | . 3 . Process 1 | . 1 . Report Inventory 1 | . 1 . Retrieve Matter 1 | . 1 . Scanalyzer . | . . . Garrison Access Hacks . | . . . Unauthorized Hacks . | . . . Terminals . | . . . Fabricators . | . . . Repair Stations . | . . . Recycling Units . | . . . Scanalyzers . | . . . Garrison Access . | . . . Data Cores Recovered . | . . . Used . | . . . Hacking Detections 3 | . 3 . Full Trace Events 1 | . 1 . Feedback Events . | . . . Feedback Blocked . | . . . Robot Schematics Acquired . | . . . Robots Built . | . . . Authchips . | . . . Time . | . . . Total Robot Build Rating . | . . . Part Schematics Acquired . | . . . Parts Built . | . . . Authchips . | . . . Time . | . . . Total Part Build Rating . | . . . Parts Repaired . | . . . Time . | . . . Parts Recycled . | . . . Recycled Matter 4 | . 4 . Retrieved Matter 4 | . 4 . Retrieved Components . | . . . Parts Scanalyzed . | . . . Part Schematics Acquired . | . . . Parts Damaged . | . . . Bothacking | -11 -10 -9 ------------ Run | Yrd Mat Mat Used RIF Installer . | . . . Robots Hacked . | . . . Non-combat . | . . . Combat . | . . . Robot Hacks Applied . | . . . Relay Couplers Released . | . . . Fabnet Peak Effective % . | . . . Robots Rewired . | . . . Allies Hacked . | . . . Hacks Repelled . | . . . Allies | -11 -10 -9 -------- Run | Yrd Mat Mat Total Allies . | . . . Largest Group . | . . . Highest-Rated Group . | . . . Highest-Rated Ally . | . . . Total Orders . | . . . Ally Attacks . | . . . Total Damage . | . . . Kills . | . . . Allies Corrupted . | . . . Allies Melted . | . . . Intel | -11 -10 -9 ------- Run | Yrd Mat Mat Robot Analysis Total . | . . . Derelict Logs Recovered . | . . . Drone Launches . | . . . Drone Recoveries . | . . . Exploration | -11 -10 -9 ------------- Run | Yrd Mat Mat Turns Passed 2144 | 70 1311 763 Spaces Moved 815 | 41 678 96 Core 18 | 5 12 1 Treads 665 | 36 629 . Legs . | . . . Wheels . | . . . Hover 132 | . 37 95 Flight . | . . . Fastest Speed 50 | 50 50 130 Average Speed 226 | 146 156 753 Slowest Speed 1400 | 160 160 1400 Overloaded Moves . | . . . Propulsion Burnouts . | . . . Robots Hopped . | . . . Cave-ins Triggered . | . . . Exploration Rate (%) 35 | 3 90 14 Regions Visited 2 Branch Regions . Pre-discovered Areas . | . . . Known Exits Taken . | . . . Unknown Exits Taken 2 | 1 1 . Scrap Searched . | . . . Spaces Dug . | . . . Terrain Destroyed 224 | . 72 152 Melee . | . . . Projectile . | . . . AOE 224 | . 72 152 Terrain Rammed . | . . . Walls Destroyed . | . . . Machines Disabled . | . . . Actions | -11 -10 -9 --------- Run | Yrd Mat Mat Total 1023 | 51 851 121 Wait 46 | . 46 . Move 813 | 40 677 96 Hop . | . . . Pick Up 39 | 6 30 3 Fast Attach 1 | . 1 . Attach 31 | 5 21 5 Detach 1 | . 1 . Swap 7 | . 7 . Drop 13 | . 12 1 Fire 70 | . 54 16 Melee . | . . . Ram . | . . . Kick . | . . . Crush 2 | . 2 . Escape Stasis . | . . . Rewire . | . . . Trap . | . . . Miscellaneous . | . . . Route ------- -11/Scrapyard -10/Materials (discovered 4 exits: [*Mat x2] / [*Min x2]) -9/Materials (discovered 1 exit: [*Min]) History --------- Turn | Location | Event 47 | -11/Scrapyard | Discovered new exit (range 12) 71 | -11/Scrapyard | Entered Materials 107 | -10/Materials | Discovered new exit (range 16) 235 | -10/Materials | Discovered new exit (range 3) 308 | -10/Materials | Build established: Mutant 335 | -10/Materials | Discovered new exit (range 16) 875 | -10/Materials | Core integrity fell below 50% 1299 | -10/Materials | Discovered new exit (range 15) 1305 | -10/Materials | Core integrity fell below 20% 1382 | -10/Materials | Entered another Materials area 1382 | -9/Materials | Evolved 2 slots: Utility x2 1928 | -9/Materials | Lost 3 parts (1p2u) 2041 | -9/Materials | Discovered new exit (range 11) 2120 | -9/Materials | Core integrity fell below 50% 2137 | -9/Materials | Core integrity fell below 20% 2145 | -9/Materials | Destroyed by Y-45 Defender with Heavy Assault Rifle Last Messages --------------- 02125_ Imp. Hover Unit destroyed. 02126_ U-05 Engineer lays Concrete. 02127_ U-05 Engineer builds a Wall. 02127_ U-05 Engineer lays Concrete. 02128_ U-05 Engineer builds a Wall. 02129_ K-01 Serf collects debris. 02131_ Sensor Array destroyed. 02131_ U-05 Engineer lays Concrete. 02132_ K-01 Serf collects debris. 02133_ U-05 Engineer lays Concrete. 02133_ Critical hit (Burn: +37). 02134_ U-05 Engineer lays Concrete. 02137_ K-01 Serf collects debris. 02137_ U-05 Engineer lays Concrete. 02140_ U-05 Engineer builds a Door. 02140_ U-05 Engineer lays Concrete. 02142_ K-01 Serf collects debris. 02142_ U-05 Engineer lays Concrete. 02144_ U-05 Engineer builds a Wall. 02145_ U-05 Engineer lays Concrete. Map ----- +----------------------------------------------------+ | | | | | | | | | | | | | | | ?????????????????????????????????? | | ?????????????????????????????????? | | #########????????????????????????? | | #########????????????????????????? | | ! ##????????????????????????? | | ##????????????????????????? | | ## #??????????????????????? | | ## +? #?????????????????? | | "" """ ## #? #?????????????????? | | "" """ ## # ]#???????####??????? | | "" """ ## + #?#"""#?# #??????? | | ## # ##"|||"## #??????? | | ##+### ## # #"" ""# #??????? | | # # #??????? | | ## ## # < # w??????? | | # #??# # #??????? | | ##+ # # ##?# # Y#??????? | | #### ?# #??????? | | """ # # ##?# ### @#??????? | | """ # # #?# #??????? | | """ ### ! #??????? | | ## #??????? | | #??????? | | ###### ##?????? | | # k " #?????? | | # uu "" +?????? | | """ # # #u #?????? | | """ # %# #?????? | | """ # # ########Y #?????? | | ? # # "" + #?????? | | ?# # #### # +?????? | | ?#### # ###% # #?????? | | ####????### # # #?????? | | ??????????#######% " # #?????? | | ???????????? %* + +?????? | | ????????????#### [" " #####?????? | | ???????????????## #?????????? | | ????????????????########?????????? | | ?????????????????????????????????? | | ?????????????????????????????????? | | ?????????????????????????????????? | | ?????????????????????????????????? | | ?????????????????????????????????? | +----------------------------------------------------+ Best States ------------- Heat Dissipation 39 Energy Generation 10 Energy Capacity 250 Matter Stores 300 Matter Capacity 300 Sight Range 16 Robot Scan Range 14 Terrain Scan Density 10 Armor Coverage 375 Power Shielding 33 Evasion (%) 50 Targeting Accuracy 5 Recoil Reduction 2 Item Schematics ----------------- None Robot Schematics ------------------ None Fabricated ------------ Nothing Alien Tech Used ----------------- None Achievements -------------- Let's See Who's Tougher Power Corrupts Remodeling Challenges ------------ None Game ------ Seed PointyDisposableRedirector Manual? 0 Play Time 00:21:27 Cumulative 1.0 hours Start 2024.04.02 @ 17:22:45 End 2024.04.02 @ 17:42:16 Sessions 1 Manual Loads 0 Difficulty Rogue Special Mode None Game No. 3 Rogue 3 Adventurer 0 Explorer 0 Win Type - Total 0 Types 0/0/0/0/0/0/0/0/0 Lore% 1 Gallery% 3 Achievement% 4 Wizard Run 0 Options --------- Layout 2 ASCII 0 Keyboard 0 Movement Mouse Keybinds 0 Fullscreen 1 Font 32/SmallcapsGlow Map View 50x44 Zoom Use 0% Tactical HUD 1 Map Filters NONE Filters NONE Steam 1 RUN: 3e746ae7-dbf6-441d-9562-4e1a8f346565